bitfinex/quotes_SOLUSD_20251106
["timestamp","ask_amount","ask_price","bid_price","bid_amount"]
[1762457175922,2.15863637,157.08,157.07,0.2]
[1762457176109,105.05863637,157.08,157.07,0.2]
[1762457177014,111.4248192,157.08,157.07,0.2]
[1762457177341,105.05863637,157.08,157.07,0.2]
[1762457178019,102.9,157.08,157.07,0.2]
[1762457178220,36.50280137,157.13,157.07,7.22658814]
[1762457178221,2.15863637,157.11,157.07,7.22658814]
[1762457178436,105.05863637,157.12,157.07,25.30169487]
[1762457178638,105.05863637,157.12,157.08,0.66]
[1762457178820,105.05863637,157.12,157.09,6.36577757]
[1762457179025,2.15863637,157.11,157.09,6.36577757]
[1762457179225,2.15863637,157.11,157.09,0.66]
[1762457179423,2.15863637,157.11,157.08,6.36602655]
[1762457179745,2.15863637,157.11,157.08,7.02602655]
[1762457181149,2.15863637,157.11,157.09,7.02564466]
[1762457181329,2.15863637,157.11,157.09,0.66]
[1762457181531,2.15863637,157.11,157.07,0.2]
[1762457181532,2.74863637,157.1,157.07,0.2]
[1762457181744,2.15863637,157.09,157.07,0.2]
[1762457182247,2.15863637,157.08,157.07,0.2]
[1762457182420,0.59,157.09,157.07,0.2]
[1762457182621,2.15863637,157.08,157.07,0.2]
[1762457182831,12.74323691,157.08,157.07,0.2]
[1762457183052,19.69941974,157.08,157.07,0.2]
[1762457183731,27.19941974,157.08,157.07,0.2]
[1762457184425,30.10593436,157.08,157.07,0.2]
[1762457184839,29.31016151,157.08,157.07,0.2]
[1762457185441,21.81016151,157.08,157.07,0.2]
[1762457185921,29.31016151,157.08,157.07,0.2]
[1762457186127,30.10593436,157.08,157.07,0.2]
[1762457187743,50.69793436,157.08,157.07,1e-08]
[1762457188128,30.38082769,157.06,157.05,0.2]
[1762457188344,48.80700385,157.06,157.05,0.2]
[1762457188544,49.39700385,157.06,157.05,0.2]
[1762457189044,44.33185286,157.06,157.05,0.2]
[1762457189561,50.69884636,157.06,157.05,0.2]
[1762457190030,55.76399735,157.06,157.05,0.2]
[1762457190467,9.78882769,157.05,157.01,0.2]
[1762457190765,5.06515099,157.02,157.01,0.2]
[1762457190938,12.56515099,157.02,157.01,0.2]
[1762457191137,13.15515099,157.02,157.01,0.2]
[1762457191638,19.52376645,157.02,157.01,0.2]
[1762457192539,18.93376645,157.02,157.01,0.2]
[1762457193565,29.31259414,157.02,157.01,0.2]
[1762457195963,30.10867107,157.02,157.01,0.2]
[1762457196972,29.31259414,157.02,157.01,0.2]
[1762457202761,30.10867107,157.02,157.01,0.2]
[1762457203684,9.78882769,157.02,157.01,0.89]
[1762457203859,5.06515099,157.04,157.01,0.89]
[1762457204044,5.06515099,157.03,157.01,0.89]
[1762457204248,9.78882769,157.05,157.02,0.69]
[1762457204470,2.16170967,157.03,157.02,0.69]
[1762457205474,9.66170967,157.04,157.02,0.69]
[1762457205780,2.16170967,157.04,157.02,0.69]
[1762457206076,2.16170967,157.03,157.02,0.69]
[1762457206273,9.66170967,157.03,157.01,0.2]
[1762457206450,20.66676216,157.03,157.02,0.69]
[1762457207349,20.66676216,157.03,157.01,0.2]
[1762457207549,20.66676216,157.03,157.02,0.69]
[1762457207748,27.03497205,157.03,157.02,0.69]
[1762457208151,23.65703758,157.03,157.02,0.69]
[1762457208366,27.03497205,157.03,157.02,0.69]
[1762457208767,3.37793447,157.05,157.02,0.69]
[1762457208977,17.24492797,157.06,157.02,0.69]
[1762457209384,20.592,157.1,157.03,3.37793447]
[1762457209587,20.592,157.1,157.02,7.05847965]
[1762457209588,20.66676216,157.09,157.04,3.37793447]
[1762457209966,20.66676216,157.09,157.03,0.69]
[1762457209967,3.37793447,157.08,157.05,0.69]
[1762457210365,3.37793447,157.07,157.05,0.69]
[1762457210769,3.37793447,157.06,157.05,0.69]
[1762457211184,9.74461131,157.07,157.05,0.69]
[1762457211484,19.533439,157.07,157.05,0.69]
[1762457213286,13.16676216,157.07,157.05,0.69]
[1762457213594,1.0,184.99,157.06,3.37793447]
[1762457213595,9.74181134,157.14,157.06,3.37793447]
[1762457213796,7.5,157.18,157.12,3.37793447]
[1762457214090,3.37793447,157.21,157.15,3.37793447]
[1762457214301,0.79481147,157.27,157.18,3.37793447]
[1762457214302,3.57793447,157.23,157.18,3.37793447]
[1762457214597,0.2,157.23,157.16,21.272]
[1762457214800,9.93804416,157.23,157.17,3.37793447]
[1762457214989,7.5,157.22,157.17,4.05793447]
[1762457215167,7.5,157.22,157.18,0.68]
[1762457215365,7.5,157.22,157.18,4.05793447]
[1762457215582,3.37793447,157.21,157.18,0.68]
[1762457215789,3.37793447,157.21,157.19,0.68]
[1762457215790,9.78882769,157.21,157.19,0.68]
[1762457215960,13.16676216,157.21,157.16,30.33280585]
[1762457216165,13.16676216,157.21,157.17,0.68]
[1762457216365,25.23201901,157.21,157.17,0.68]
[1762457217376,7.94319132,157.19,157.17,0.68]
[1762457218985,17.28882769,157.21,157.17,0.68]
[1762457219172,0.2,157.23,157.19,7.94319132]
[1762457219598,0.2,157.23,157.2,0.68]
[1762457220694,0.2,157.23,157.2,8.62319132]
[1762457220866,0.2,157.23,157.21,14.30410983]
[1762457221190,0.2,157.23,157.21,14.98410983]
[1762457221393,0.2,157.23,157.22,0.68]
[1762457221872,8.14319132,157.23,157.2,0.68]
[1762457222202,0.2,157.23,157.21,0.68]
[1762457222396,0.2,157.23,157.21,8.62319132]
[1762457222898,0.2,157.23,157.22,7.04051392]
[1762457223396,9.78882769,157.3,157.22,35.57570524]
[1762457223579,8.14319132,157.32,157.27,7.94319132]
[1762457223776,8.14319132,157.32,157.28,7.94319132]
[1762457223777,0.2,157.32,157.28,7.94319132]
[1762457224183,24.28856618,157.32,157.29,0.68]
[1762457224788,7.94319132,157.31,157.27,0.68]
[1762457224978,7.94319132,157.31,157.28,0.68]
[1762457225305,24.28856618,157.32,157.28,0.68]
[1762457226096,9.98882769,157.32,157.28,7.03801606]
[1762457226287,0.2,157.33,157.31,7.94319132]
[1762457226490,0.2,157.37,157.29,7.6597323]
[1762457226491,0.2,157.37,157.32,20.7515201]
[1762457226688,0.2,157.37,157.33,7.5]
[1762457227008,0.2,157.37,157.35,14.29845029]
[1762457227369,0.2,157.37,157.35,14.97845029]
[1762457227568,0.2,157.37,157.35,35.57045029]
[1762457227768,0.2,157.37,157.36,70.592]
[1762457227998,0.2,157.37,157.36,79.37426205]
[1762457228898,0.2,157.37,157.36,0.68]
[1762457229074,0.2,157.37,157.36,22.47804642]
[1762457229475,0.2,157.4,157.39,20.592]
[1762457229679,0.2,157.4,157.39,36.71519132]
[1762457229879,0.2,157.4,157.39,8.18]
[1762457230205,0.2,157.4,157.39,16.12319132]
[1762457231010,0.2,157.4,157.39,22.47683513]
[1762457231801,0.2,157.4,157.39,43.06883513]
[1762457231993,0.2,157.4,157.39,93.06883513]
[1762457232193,0.2,157.4,157.39,143.06883513]
[1762457233418,1e-08,157.4,157.39,122.47683513]
[1762457233724,1e-08,157.4,157.39,130.57879436]
[1762457233926,0.2,157.41,157.39,130.57879436]
[1762457233927,1e-08,157.41,157.39,129.74002645]
[1762457234219,0.2,157.46,157.44,50.0]
[1762457234520,0.2,157.46,157.45,15.42319132]
[1762457234701,0.2,157.46,157.45,16.10319132]
[1762457235608,0.2,157.46,157.41,7.03281119]
[1762457235932,0.2,157.46,157.45,7.94319132]
[1762457236105,0.2,157.46,157.44,7.94319132]
[1762457236496,0.2,157.46,157.4,15.42319132]
[1762457236497,9.78882769,157.44,157.4,15.42319132]
[1762457236809,7.94319132,157.43,157.38,7.94319132]
[1762457237021,7.94319132,157.43,157.35,15.88793904]
[1762457237022,17.73201901,157.41,157.35,0.68]
[1762457237255,9.78882769,157.41,157.37,7.94319132]
[1762457237413,0.7,157.4,157.34,0.68]
[1762457237722,8.64319132,157.4,157.35,7.94319132]
[1762457238112,0.7,157.39,157.35,7.94319132]
[1762457238427,0.7,157.39,157.35,8.62319132]
[1762457238824,9.78882769,157.38,157.33,7.48]
[1762457239128,9.98882769,157.38,157.34,8.62319132]
[1762457239515,7.94319132,157.39,157.33,13.83600655]
[1762457239516,0.7,157.41,157.36,7.94319132]
[1762457239829,15.42319132,157.44,157.39,7.94319132]
[1762457240129,22.47513273,157.44,157.39,7.94319132]
[1762457240329,0.7,157.43,157.39,7.94319132]
[1762457240516,7.05214507,157.43,157.39,7.94319132]
[1762457240718,14.99533639,157.43,157.38,7.94319132]
[1762457241028,18.43201901,157.42,157.37,7.94319132]
[1762457241325,9.78882769,157.39,157.36,7.48]
[1762457241635,0.7,157.41,157.37,7.94319132]
[1762457241806,9.78882769,157.42,157.38,7.94319132]
[1762457242220,9.78882769,157.42,157.36,7.48]
[1762457242221,8.64319132,157.41,157.36,15.42319132]
[1762457242434,0.7,157.41,157.36,15.42319132]
[1762457242632,7.05315185,157.41,157.36,16.14319132]
[1762457242816,9.78882769,157.4,157.36,7.48]
[1762457243009,10.44882769,157.4,157.36,7.48]
[1762457243636,10.44882769,157.4,157.36,8.2]
[1762457243935,0.66,157.39,157.36,7.48]
[1762457244144,0.66,157.39,157.35,7.94319132]
[1762457244314,0.66,157.39,157.35,14.29842313]
[1762457244514,0.66,157.39,157.35,15.01831518]
[1762457244952,14.95694791,157.39,157.34,14.29885023]
[1762457245111,14.95694791,157.39,157.34,14.2987242]
[1762457245312,14.95694791,157.39,157.34,15.0187242]
[1762457245512,14.95694791,157.39,157.34,8.66319132]
[1762457245744,14.95694791,157.39,157.34,15.01870939]
[1762457246116,0.66,157.38,157.28,65.89503211]
[1762457246411,7.94319132,157.35,157.29,7.94319132]
[1762457246629,9.78882769,157.34,157.29,0.72]
[1762457246823,9.78882769,157.34,157.29,8.66319132]
[1762457247031,0.66,157.33,157.29,8.66319132]
[1762457247329,18.39201901,157.34,157.29,7.07752978]
[1762457247535,10.44882769,157.34,157.29,15.0207211]
[1762457247740,17.73201901,157.34,157.29,8.66319132]
[1762457247918,8.60319132,157.33,157.28,7.48]
[1762457248123,17.73201901,157.32,157.26,8.66319132]
[1762457248319,7.94319132,157.31,157.26,8.66319132]
[1762457248517,7.94319132,157.31,157.26,15.02203958]
[1762457248721,8.60319132,157.31,157.26,15.02203958]
[1762457249012,7.01697384,157.31,157.26,15.02203958]
[1762457249228,14.96016516,157.31,157.26,15.02203958]
[1762457249825,0.66,157.31,157.26,15.02203958]
[1762457250220,7.94319132,157.3,157.25,14.30217802]
[1762457250539,7.94319132,157.3,157.23,6.36010939]
[1762457250540,7.94319132,157.28,157.23,6.36010939]
[1762457250750,6.35700239,157.31,157.25,7.94319132]
[1762457251047,10.44882769,157.3,157.26,7.94319132]
[1762457251250,7.94319132,157.29,157.24,7.94319132]
[1762457251555,7.94319132,157.29,157.21,7.48]
[1762457251556,7.94319132,157.26,157.21,7.48]
[1762457251844,7.94319132,157.24,157.19,8.14319132]
[1762457252213,8.60319132,157.24,157.19,8.86319132]
[1762457252515,0.66,157.23,157.19,15.22483075]
[1762457252837,0.66,157.23,157.19,15.22490518]
[1762457253025,16.14785218,157.26,157.19,15.22490518]
[1762457253026,17.73201901,157.24,157.19,15.22490518]
[1762457253433,18.39201901,157.24,157.19,15.22490518]
[1762457254013,18.39201901,157.24,157.19,14.50490518]
[1762457254209,24.75174787,157.24,157.19,15.22490518]
[1762457255140,9.78882769,157.25,157.21,7.94319132]
[1762457255327,0.66,157.24,157.21,7.94319132]
[1762457255640,0.66,157.24,157.2,8.66319132]
[1762457256346,0.66,157.24,157.2,15.02422235]
[1762457256717,17.73201901,157.25,157.2,14.30422235]
[1762457256935,10.44882769,157.25,157.21,8.66319132]
[1762457257257,0.67,157.24,157.2,15.02422235]
[1762457257845,7.94319132,157.23,157.19,0.2]
[1762457258217,7.94319132,157.23,157.19,7.24162159]
[1762457258415,14.97314728,157.24,157.19,15.18481291]
[1762457258630,24.09143414,157.25,157.2,8.62319132]
[1762457258824,18.40201901,157.25,157.2,8.62319132]
[1762457259031,0.67,157.24,157.2,8.62319132]
[1762457259540,8.61319132,157.24,157.2,0.68]
[1762457260140,14.9731391,157.24,157.19,14.50481291]
[1762457260326,24.09132068,157.25,157.2,8.62319132]
[1762457260641,15.42319132,157.26,157.21,7.94319132]
[1762457260816,10.45882769,157.25,157.21,7.94319132]
[1762457261220,0.67,157.24,157.2,7.94319132]
[1762457261726,0.67,157.24,157.2,8.62319132]
[1762457261943,0.67,157.24,157.21,7.94319132]
[1762457262641,9.78882769,157.25,157.21,7.94319132]
[1762457262817,16.14814822,157.25,157.21,7.94319132]
[1762457263018,16.81814822,157.25,157.21,7.94319132]
[1762457263944,24.76133954,157.25,157.2,14.30448848]
[1762457264248,16.81814822,157.25,157.21,14.98407919]
[1762457264721,21.78218848,157.26,157.22,0.68]
[1762457265047,0.67,157.25,157.21,14.98407919]
[1762457266144,14.97255843,157.25,157.21,6.36088787]
[1762457266345,12.08186021,157.25,157.21,0.68]
[1762457266552,5.7224931,157.25,157.21,5.7324931]
[1762457267217,0.67,157.25,157.21,0.68]
[1762457267422,5.7224931,157.25,157.21,0.68]
[1762457267622,12.08183308,157.25,157.21,0.68]
[1762457268450,0.67,157.24,157.2,11.41369424]
[1762457268631,5.7224931,157.24,157.19,12.29407513]
[1762457269124,0.67,157.23,157.19,12.29407513]
[1762457269327,5.0524931,157.22,157.19,0.2]
[1762457269638,13.2024931,157.23,157.19,0.2]
[1762457269951,8.15,157.23,157.19,12.29411564]
[1762457270838,14.51012486,157.23,157.19,12.29411564]
[1762457271451,14.51012486,157.23,157.19,5.9324931]
[1762457271843,19.56261796,157.23,157.19,5.9324931]
[1762457272038,14.51012486,157.23,157.19,5.9324931]
[1762457272271,10.45882769,157.22,157.19,0.2]
[1762457272440,7.48,157.23,157.2,5.7124931]
[1762457272645,0.68,157.23,157.19,11.61420735]
[1762457272844,0.68,157.22,157.19,11.61420735]
[1762457273473,0.68,157.22,157.19,6.56171425]
[1762457273760,0.68,157.22,157.19,0.2]
[1762457274056,0.68,157.22,157.19,6.56168799]
[1762457274271,0.68,157.23,157.19,7.22168799]
[1762457274432,0.68,157.22,157.19,6.56168799]
[1762457275852,5.7324931,157.22,157.19,6.56171944]
[1762457276061,0.68,157.22,157.19,7.22171944]
[1762457276641,0.68,157.22,157.19,0.86]
[1762457277663,0.68,157.22,157.19,0.2]
[1762457277949,12.09311801,157.22,157.19,0.2]
[1762457278554,14.84132079,157.21,157.19,0.2]
[1762457278856,14.84132079,157.2,157.19,0.2]
[1762457279032,15.52132079,157.2,157.19,0.2]
[1762457279745,42.47464394,157.2,157.19,0.2]
[1762457280734,49.95464394,157.2,157.19,0.2]
[1762457280933,37.42215084,157.2,157.19,0.2]
[1762457281238,42.47464394,157.2,157.19,0.2]
[1762457281771,49.95464394,157.2,157.19,0.2]
[1762457282155,37.42215084,157.2,157.19,0.2]
[1762457282345,47.05946399,157.2,157.19,0.2]
[1762457282742,9.78882769,157.2,157.19,0.2]
[1762457283052,26.46584574,157.24,157.19,3.01731315]
[1762457283244,2.15731315,157.23,157.19,0.86]
[1762457283440,2.83731315,157.23,157.19,0.2]
[1762457283637,2.15731315,157.23,157.19,0.2]
[1762457283955,7.48,157.24,157.19,9.37903387]
[1762457284150,9.78882769,157.23,157.19,9.37903387]
[1762457284457,9.78882769,157.23,157.2,0.66]
[1762457284763,17.26882769,157.24,157.2,2.81731315]
[1762457284961,23.62859386,157.24,157.2,2.81731315]
[1762457285566,7.48,157.24,157.22,2.15731315]
[1762457285735,16.14800169,157.26,157.22,2.15731315]
[1762457285938,16.14800169,157.26,157.22,2.81731315]
[1762457285939,7.48,157.25,157.22,2.81731315]
[1762457286137,7.48,157.25,157.23,2.15731315]
[1762457286339,7.48,157.25,157.23,5.7102839]
[1762457286552,21.87730907,157.28,157.23,5.7102839]
[1762457286861,7.48,157.27,157.24,5.0502839]
[1762457287034,7.48,157.27,157.24,5.7102839]
[1762457287239,14.83911159,157.25,157.19,21.452]
[1762457287439,12.5302839,157.24,157.19,26.5022839]
[1762457287757,13.2102839,157.24,157.19,32.86369341]
[1762457287954,19.57002176,157.24,157.2,0.66]
[1762457288159,18.89002176,157.24,157.19,32.20369341]
[1762457288456,10.46882769,157.23,157.19,0.2]
[1762457288657,5.0502839,157.24,157.2,0.66]
[1762457288959,15.51911159,157.24,157.2,0.66]
[1762457289261,13.83932048,157.25,157.21,5.0502839]
[1762457289462,7.48,157.25,157.21,5.0502839]
[1762457289759,7.48,157.25,157.23,5.0502839]
[1762457289961,13.83859685,157.27,157.23,11.41031951]
[1762457290260,25.6422839,157.3,157.25,5.0502839]
[1762457290567,17.94882769,157.29,157.25,5.7102839]
[1762457291162,17.26882769,157.29,157.26,0.66]
[1762457291559,7.48,157.29,157.26,5.7102839]
[1762457291946,20.94063468,157.33,157.28,5.0502839]
[1762457292147,22.99911159,157.32,157.27,5.0502839]
[1762457292346,5.0502839,157.31,157.26,12.06899945]
[1762457292743,28.67583893,157.32,157.27,5.7102839]
[1762457292949,29.35583893,157.32,157.27,5.7102839]
[1762457293358,22.99911159,157.32,157.27,5.7102839]
[1762457293664,7.48,157.32,157.28,5.7102839]
[1762457294060,21.61653825,157.37,157.31,5.0502839]
[1762457294265,17.26882769,157.36,157.29,7.01768326]
[1762457294566,22.99911159,157.36,157.31,5.0502839]
[1762457294746,14.83911159,157.34,157.29,12.5302839]
[1762457295062,5.0502839,157.33,157.29,8.14]
[1762457295268,13.2102839,157.33,157.29,0.66]
[1762457295450,12.5302839,157.33,157.28,11.40831995]
[1762457295653,12.5302839,157.33,157.29,5.7102839]
[1762457296072,18.886473,157.33,157.29,5.7102839]
[1762457296245,19.566473,157.33,157.29,12.06788601]
[1762457296863,7.48,157.33,157.29,12.06788601]
[1762457297062,7.48,157.33,157.3,5.7102839]
[1762457297257,7.48,157.33,157.31,5.0502839]
[1762457297474,14.51535252,157.35,157.31,5.0502839]
[1762457297674,18.88563642,157.35,157.3,5.7102839]
[1762457297868,0.68,157.34,157.3,5.7102839]
[1762457298076,7.03572402,157.34,157.3,12.06753771]
[1762457298774,12.08600792,157.34,157.29,12.06784118]
[1762457299173,6.35572402,157.34,157.3,5.7102839]
[1762457299379,15.51911159,157.33,157.28,5.0502839]
[1762457299679,15.51911159,157.33,157.28,5.7102839]
[1762457299846,15.51911159,157.33,157.29,0.66]
[1762457300046,12.08712755,157.32,157.27,11.40875397]
[1762457300252,14.83911159,157.31,157.26,25.6422839]
[1762457300451,5.0502839,157.3,157.25,26.3022839]
[1762457300672,7.48,157.32,157.29,5.0502839]
[1762457300878,7.48,157.32,157.28,5.0502839]
[1762457301273,14.51657647,157.32,157.28,5.7102839]
[1762457301686,13.83657647,157.32,157.29,0.66]
[1762457301865,13.83657647,157.32,157.25,42.84953268]
[1762457302060,7.48,157.32,157.28,0.66]
[1762457302282,7.48,157.32,157.29,6.35768326]
[1762457302473,7.48,157.34,157.3,5.0502839]
[1762457302785,7.48,157.34,157.3,5.7102839]
[1762457302954,29.38396669,157.36,157.31,5.7102839]
[1762457303149,24.33368279,157.36,157.32,5.0502839]
[1762457303363,0.71,157.35,157.31,5.7102839]
[1762457303766,13.8348551,157.36,157.32,5.7102839]
[1762457303965,7.48,157.36,157.33,5.7102839]
[1762457304351,13.83504372,157.36,157.32,5.0502839]
[1762457304575,7.48,157.36,157.33,5.7102839]
[1762457305176,13.8348856,157.36,157.32,0.66]
[1762457305377,7.48,157.36,157.33,0.66]
[1762457305580,7.48,157.36,157.33,5.7102839]
[1762457306073,16.85297762,157.38,157.33,5.0502839]
[1762457306408,5.7602839,157.44,157.37,5.0502839]
[1762457306683,5.0502839,157.44,157.38,5.0502839]
[1762457306888,6.84,157.43,157.4,5.0502839]
[1762457307101,0.71,157.45,157.39,0.66]
[1762457307262,14.03091219,157.46,157.41,5.0502839]
[1762457307576,14.03091219,157.46,157.42,5.0502839]
[1762457307886,15.54911159,157.45,157.39,0.66]
[1762457308088,15.54911159,157.45,157.4,5.0502839]
[1762457308288,0.71,157.44,157.4,5.0502839]
[1762457308473,0.71,157.44,157.41,5.0502839]
[1762457309180,0.71,157.44,157.4,5.7102839]
[1762457309391,0.71,157.44,157.4,5.0502839]
[1762457309792,9.78882769,157.43,157.39,5.0502839]
[1762457309976,13.83134454,157.45,157.41,5.0502839]
[1762457310172,7.06134454,157.45,157.41,5.0502839]
[1762457310489,16.85017223,157.45,157.41,5.7102839]
[1762457310672,0.71,157.44,157.41,5.0502839]
[1762457310872,5.7602839,157.44,157.39,5.7102839]
[1762457311174,0.71,157.44,157.4,5.0502839]
[1762457311369,5.7602839,157.44,157.39,5.7102839]
[1762457311776,14.83911159,157.43,157.38,11.40432513]
[1762457311977,15.54911159,157.43,157.38,5.0502839]
[1762457312304,22.22940106,157.45,157.35,16.04641242]
[1762457312305,6.35324015,157.4,157.36,5.0502839]
[1762457312478,6.35324015,157.4,157.35,12.06539002]
[1762457312676,7.06324015,157.4,157.35,11.40539002]
[1762457312862,7.06324015,157.4,157.36,0.66]
[1762457313059,6.35324015,157.4,157.36,5.7102839]
[1762457313384,15.54911159,157.41,157.36,5.7102839]
[1762457313385,23.62167737,157.41,157.37,5.0502839]
[1762457313565,16.85167737,157.41,157.37,5.7102839]
[1762457313773,16.14167737,157.41,157.37,5.0502839]
[1762457313970,5.0502839,157.42,157.37,5.0502839]
[1762457313971,6.35254633,157.42,157.38,5.0502839]
[1762457314171,0.71,157.41,157.38,5.0502839]
[1762457314784,7.0630287,157.41,157.33,28.072]
[1762457314986,7.0630287,157.41,157.37,5.0502839]
[1762457315789,0.71,157.41,157.37,5.0502839]
[1762457316090,0.71,157.41,157.37,5.7102839]
[1762457316282,7.06286713,157.41,157.37,5.7102839]
[1762457316481,7.06286713,157.41,157.36,5.0502839]
[1762457316683,7.06286713,157.41,157.37,0.66]
[1762457316684,12.11315103,157.41,157.37,0.66]
[1762457317683,12.11315103,157.41,157.35,5.0502839]
[1762457317684,0.7,157.4,157.35,5.0502839]
[1762457318178,8.18,157.4,157.35,5.7702839]
[1762457318380,0.7,157.4,157.36,0.72]
[1762457319063,7.05353241,157.4,157.36,0.72]
[1762457320291,7.05353241,157.4,157.35,11.40554176]
[1762457320292,0.7,157.39,157.35,5.0502839]
[1762457320472,0.7,157.39,157.35,12.12550763]
[1762457321476,0.7,157.39,157.36,5.0502839]
[1762457321973,112.68882769,157.42,157.37,5.0502839]
[1762457322283,102.9,157.42,157.4,5.0502839]
[1762457322487,102.9,157.42,157.38,0.72]
[1762457322793,102.9,157.42,157.39,5.0502839]
[1762457323205,102.9,157.42,157.39,5.7702839]
[1762457323490,109.25248492,157.42,157.39,5.7702839]
[1762457323905,102.9,157.42,157.39,12.12383126]
[1762457324275,102.9,157.42,157.39,7.07354736]
[1762457324470,0.7,157.41,157.38,5.0502839]
[1762457324773,0.7,157.41,157.37,14.55441163]
[1762457324973,109.2524526,157.42,157.37,18.88469553]
[1762457325196,117.4324526,157.42,157.38,0.72]
[1762457325390,116.7324526,157.42,157.38,5.0502839]
[1762457325590,103.6,157.41,157.37,7.48]
[1762457325775,6.35324015,157.4,157.36,12.12508798]
[1762457325975,7.05324015,157.4,157.36,12.12508798]
[1762457326171,7.05324015,157.4,157.35,5.0502839]
[1762457326172,0.7,157.39,157.35,5.0502839]
[1762457326699,9.78882769,157.38,157.34,13.2502839]
[1762457326895,9.78882769,157.38,157.34,19.60592516]
[1762457327069,9.78882769,157.38,157.35,5.7702839]
[1762457327274,18.88352405,157.4,157.35,5.7702839]
[1762457327500,0.7,157.39,157.36,5.0502839]
[1762457327799,0.7,157.39,157.36,11.40509722]
[1762457328097,0.7,157.39,157.36,6.35481332]
[1762457328273,0.7,157.39,157.36,11.40509722]
[1762457328470,116.73298898,157.41,157.37,8.64321771]
[1762457328690,0.7,157.4,157.36,14.27803103]
[1762457328897,0.7,157.4,157.36,8.64321771]
[1762457329400,8.62321771,157.4,157.35,8.64321771]
[1762457329802,6.35364381,157.39,157.35,14.99831449]
[1762457331593,7.05340039,157.4,157.36,14.99806874]
[1762457331993,0.7,157.39,157.36,14.27806874]
[1762457332586,9.78882769,157.39,157.36,14.99806874]
[1762457332901,102.9,157.41,157.37,8.64321771]
[1762457333202,110.38,157.41,157.39,7.92321771]
[1762457333403,102.9,157.41,157.4,0.72]
[1762457333702,102.9,157.41,157.38,8.64321771]
[1762457334488,102.9,157.41,157.39,8.64321771]
[1762457334698,102.9,157.41,157.4,7.92321771]
[1762457334897,102.9,157.41,157.39,14.99651277]
[1762457335096,102.9,157.41,157.38,14.27713053]
[1762457335296,102.9,157.41,157.38,14.99713053]
[1762457335504,102.9,157.41,157.38,14.27713053]
[1762457335803,102.9,157.41,157.39,8.64321771]
[1762457336304,103.55,157.41,157.37,22.47752511]
[1762457337507,10.43882769,157.4,157.36,6.35480679]
[1762457337711,112.68882769,157.4,157.37,7.92321771]
[1762457337906,112.68882769,157.4,157.37,8.64321771]
[1762457338103,112.68882769,157.4,157.37,7.92321771]
[1762457338590,112.68882769,157.4,157.37,8.64321771]
[1762457339003,112.68882769,157.4,157.37,14.99737656]
[1762457340206,102.9,157.4,157.38,0.72]
[1762457340409,102.9,157.4,157.39,7.92321771]
[1762457340818,120.16882769,157.45,157.39,8.64321771]
[1762457341020,0.2,157.46,157.42,7.92321771]
[1762457341204,10.63882769,157.46,157.43,7.92321771]
[1762457341389,10.63882769,157.46,157.42,15.40321771]
[1762457341390,16.98966713,157.46,157.42,15.40321771]
[1762457341712,16.98966713,157.46,157.42,16.12321771]
[1762457342023,16.98966713,157.46,157.42,8.2]
[1762457342326,16.98966713,157.46,157.42,22.47545445]
[1762457342700,10.63882769,157.46,157.43,7.92321771]
[1762457343702,10.63882769,157.46,157.42,14.55223674]
[1762457344020,16.33973625,157.46,157.42,22.47545445]
[1762457344231,16.98973625,157.46,157.42,22.47545445]
[1762457344518,0.85,157.46,157.43,7.92321771]
[1762457345222,0.2,157.46,157.44,7.92321771]
[1762457345434,0.2,157.46,157.45,15.40321771]
[1762457345596,0.2,157.46,157.45,16.12321771]
[1762457346515,0.2,157.46,157.45,22.47444032]
[1762457347218,0.2,157.46,157.45,14.55122261]
[1762457347409,0.2,157.46,157.45,22.47444032]
[1762457349234,0.2,157.46,157.45,22.63260295]
[1762457349731,0.2,157.49,157.48,20.592]
[1762457349931,0.1,157.5,157.48,29.39307787]
[1762457350236,0.1,157.5,157.49,0.72]
[1762457350437,9.78882769,157.55,157.49,4.07464676]
[1762457350606,9.78882769,157.56,157.52,9.70291637]
[1762457351224,3.35464676,157.54,157.48,20.592]